Cogmind - Beta 10.2 *** ADVENTURER MODE // 2020.11.02 @ 00:20:17 Player: Georg Result: Destroyed by S-10 Pest with Light Assault Rifle Performance ------------- Evolutions (1) 500 Regions Visited (2) 400 Robots Destroyed (19) 95 Value Destroyed (344) 344 Prototype IDs (0) 0 Alien Tech Used (0) 0 Bonus (0) 0 TOTAL SCORE: 1339 Bonus ------- None Cogmind --------- Core Integrity 0/400 Matter 269/300 Energy 100/100 System Corruption 0% Temperature Cool (0) Movement Core (300) Ox5 Location -9/Materials Parts ------- > --- POWER (1) -------- (None) > --- PROPULSION (3) --- (None) > --- UTILITY (2) ------ Large Storage Unit > --- WEAPON (3) ------- (None) > --- INVENTORY (10) --- EM Pulse Gun Peak State ------------ > --- POWER ------------ Light Ion Engine > --- PROPULSION ------- Hover Unit Hover Unit > --- UTILITY ---------- Small Storage Unit Hardened Light Armor Plating > --- WEAPON ----------- Mini Grenade Launcher Mini Grenade Launcher > --- INVENTORY -------- (None) [Rating: 10] Favorites ----------- Power Light Ion Engine Engine Light Ion Engine Propulsion Hover Unit Treads Light Treads Leg Aluminum Leg Hover Unit Hover Unit Utility Small Storage Unit Storage Small Storage Unit Protection Hardened Light Armor Plating Weapon EM Pulse Gun Energy Gun EM Pulse Gun Launcher Mini Grenade Launcher Special Weapon Mining Laser Build | -11 -10 -9 ------- Run | Scr Mat Mat Slots Evolved 2 | . . 2 Power . | . . . Propulsion 1 | . . 1 Utility . | . . . Weapon 1 | . . 1 Parts Attached 21 | 6 12 3 Power 3 | 1 1 1 Engine 3 | 1 1 1 Core . | . . . Reactor . | . . . Propulsion 5 | 2 2 1 Treads 1 | . . 1 Leg 2 | 2 . . Wheel . | . . . Hover 2 | . 2 . Flight . | . . . Utility 3 | 1 2 . Device . | . . . Storage 2 | 1 1 . Processor . | . . . Hackware . | . . . Protection 1 | . 1 . Artifact . | . . . Weapon 10 | 2 7 1 Energy Gun 7 | 2 4 1 Energy Cannon . | . . . Ballistic Gun . | . . . Ballistic Cannon . | . . . Launcher 2 | . 2 . Special Weapon 1 | . 1 . Impact Weapon . | . . . Slashing Weapon . | . . . Piercing Weapon . | . . . Special Melee Weapon . | . . . Unidentified Prototypes . | . . . Parts Lost 14 | . 6 8 Power 3 | . 1 2 Propulsion 4 | . 2 2 Utility 1 | . . 1 Weapon 6 | . 3 3 Highest Loss Streak 8 | . 6 8 Average Slot Usage (%) 78 | . 79 74 Engine 12 | . 13 7 Treads 1 | . . 9 Leg 5 | . 6 . Hover 10 | . 10 12 Storage 13 | . 14 11 Protection 9 | . 9 7 Energy Gun 18 | . 16 26 Launcher 6 | . 7 . Naked Turns . | . . . Heaviest Build 30 | 10 28 30 Greatest Support 20 | 20 20 12 Greatest Overweight (x) 6 | . 4 6 Average Overweight (x) 1 | . 1 2 Largest Inventory Capacity 10 | 6 10 10 Average Capacity 7 | 5 6 10 Most Carried 4 | 4 4 3 Average Carried 1 | 1 1 1 Final Capacity 10 | 6 10 10 Final Carried 4 | 2 4 1 Class Distribution -------------------- 89% | Mutant 10% | Tank Dominant Class ---------------- Mutant | -10/Materials Tank | -9/Materials Resources | -11 -10 -9 ----------- Run | Scr Mat Mat Matter Collected 398 | 182 216 . Remotely . | . . . Salvage Created 508 | . 309 199 Parts 28 | . 18 10 Haulers Intercepted 2 | . 1 1 Recyclers Shooed . | . . . Parts Field Recycled . | . . . Retrieved Matter . | . . . Parts Self-Destructed . | . . . Prevented . | . . . Kills | -11 -10 -9 ------- Run | Scr Mat Mat Combat Hostiles Destroyed 12 | . 8 4 Guns 5 | . 4 1 AOE 7 | . 4 3 Classes Destroyed 7 | . 6 1 Worker 1 | . 1 . Builder 2 | . 2 . Hauler 2 | . 1 1 Recycler 1 | . . 1 Watcher 1 | . 1 . Swarmer 6 | . 3 3 Grunt 6 | . 5 1 Best Kill Streak 6 | . 3 6 Combat Bots Only 4 | . 3 4 Max Kills in Single Turn 2 | . 2 2 Gunslinging . | . . . Exploded 2 | . 2 2 Melee . | . . . Uniques/NPCs Destroyed . | . . . Combat | -11 -10 -9 -------- Run | Scr Mat Mat Damage Taken 1754 | . 740 1014 Core 569 | . 163 406 Absorbed by Shields . | . . . Core Remaining (%) 67 | 100 34 . Volleys Fired 29 | . 22 7 Largest 3 | . 2 3 Hottest 120 | . 90 120 Shots Fired 63 | . 42 21 Gun 53 | . 32 21 Cannon . | . . . Launcher 10 | . 10 . Special . | . . . Kinetic . | . . . Thermal 17 | . 17 . Explosive 10 | . 10 . Electromagnetic 36 | . 15 21 Robot Hit Streak 10 | . 10 10 Robot Miss Streak 2 | . 2 1 Penetration Max . | . . . Secondary Targets 5 | . 2 3 Max Gunslinging Chain 1 | . 1 1 Shots Hit Robots 48 | . 30 18 Core Hits 28 | . 20 8 Critical Hits . | . . . Critical Kills . | . . . Critical Parts Destroyed . | . . . Melee Attacks . | . . . Impact . | . . . Slashing . | . . . Piercing . | . . . Sneak Attacks . | . . . Combat Hostiles . | . . . Follow-up Attacks . | . . . Damage Inflicted 1173 | . 799 374 Guns 478 | . 317 161 Cannons . | . . . Explosions 689 | . 477 212 Melee . | . . . Ramming 6 | . 5 1 Kinetic . | . . . Thermal 405 | . 193 212 Explosive 439 | . 439 . Electromagnetic 323 | . 162 161 Impact . | . . . Slashing . | . . . Piercing . | . . . Highest Corruption . | . . . Average Corruption . | . . . Corruption Purged . | . . . Overload Shots . | . . . Overflow Damage 13 | . 13 . Projectiles . | . . . Explosions 13 | . 13 . Melee . | . . . Knockbacks . | . . . Impact . | . . . Kinetic . | . . . Secondary . | . . . Self-Inflicted Damage 92 | . 92 . Shots 4 | . 4 . Rammed 3 | . 1 2 Targets Rammed 3 | . 1 2 Kicked . | . . . Crushed . | . . . Highest Temperature 343 | . 343 296 Average Temperature 111 | . 93 152 Received Heat Transfer 549 | . 399 150 Siege Activations . | . . . Robots Corrupted . | . . . Combat Hostiles . | . . . Parts Fried 1 | . 1 . Impact Corruptions . | . . . Robots Melted . | . . . Combat Hostiles . | . . . Parts Melted 1 | . . 1 Heat Transferred 659 | . 409 250 Parts Sabotaged . | . . . Parts Stolen . | . . . Parts Stripped . | . . . Power Chain Reactions 4 | . 1 3 Missiles Intercepted . | . . . Alert | -11 -10 -9 ------- Run | Scr Mat Mat Peak Influence 228 | . 228 129 Initial 9 | . . 9 Average 102 | . 123 68 Maximum Alert Level 1 | . 1 . Low Security (%) 72 | 100 62 100 Level 1 27 | . 37 . Level 2 . | . . . Level 3 . | . . . Level 4 . | . . . Level 5 . | . . . High Security . | . . . Max Security . | . . . Squads Dispatched 2 | . 1 1 Investigation 1 | . 1 . Extermination . | . . . Reinforcement 1 | . . 1 Assault . | . . . Garrison . | . . . Intercept . | . . . Construction Impeded . | . . . Haulers Reinforced . | . . . Stealth | -11 -10 -9 --------- Run | Scr Mat Mat Distress Signals . | . . . Communications Jammed . | . . . Distress Signals . | . . . Times Spotted 26 | . 16 10 Peak Tracking Total 8 | . 8 6 Tactical Retreats 1 | . 1 . Traps | -11 -10 -9 ------- Run | Scr Mat Mat Traps Triggered . | . . . Indirectly . | . . . Trap Hack Attempts . | . . . Triggered . | . . . Disarmed . | . . . Reprogrammed . | . . . Reused . | . . . Traps Extracted . | . . . Installed . | . . . Triggered . | . . . Machines | -11 -10 -9 ---------- Run | Scr Mat Mat Machines Disabled 3 | . 1 2 Max in Single Turn 1 | . 1 1 Machines Sabotaged . | . . . Garrisons Compromised . | . . . Overloaded Fab Kills . | . . . Fab Network Shutdowns . | . . . Hacking | -11 -10 -9 --------- Run | Scr Mat Mat Machines Accessed 1 | . 1 . Terminals 1 | . 1 . Fabricators . | . . . Repair Stations . | . . . Recycling Units . | . . . Scanalyzers . | . . . Garrison Access . | . . . Total Hacks 3 | . 3 . Successful 3 | . 3 . Failed . | . . . Catastrophic . | . . . Database Lockouts . | . . . Manual . | . . . Terminals 3 | . 3 . Fabricators . | . . . Repair Stations . | . . . Recycling Units . | . . . Scanalyzers . | . . . Garrison Access . | . . . Terminal Hacks 3 | . 3 . Record 2 | . 2 . Dispatch Records 1 | . 1 . Fabricator Hacks . | . . . Repair Station Hacks . | . . . Recycling Unit Hacks . | . . . Scanalyzer . | . . . Garrison Access Hacks . | . . . Unauthorized Hacks . | . . . Terminals . | . . . Fabricators . | . . . Repair Stations . | . . . Recycling Units . | . . . Scanalyzers . | . . . Garrison Access . | . . . Data Cores Recovered . | . . . Used . | . . . Hacking Detections 1 | . 1 . Full Trace Events 1 | . 1 . Feedback Events . | . . . Feedback Blocked . | . . . Robot Schematics Acquired . | . . . Robots Built . | . . . Matter . | . . . Time . | . . . Total Robot Build Rating . | . . . Part Schematics Acquired . | . . . Parts Built . | . . . Matter . | . . . Time . | . . . Total Part Build Rating . | . . . Parts Repaired . | . . . Time . | . . . Parts Recycled . | . . . Recycled Matter . | . . . Retrieved Matter . | . . . Retrieved Components . | . . . Parts Scanalyzed . | . . . Part Schematics Acquired . | . . . Parts Damaged . | . . . Bothacking | -11 -10 -9 ------------ Run | Scr Mat Mat Used RIF Installer . | . . . Robots Hacked . | . . . Non-combat . | . . . Combat . | . . . Robot Hacks Applied . | . . . Relay Couplers Released . | . . . Robots Rewired . | . . . Allies Hacked . | . . . Hacks Repelled . | . . . Allies | -11 -10 -9 -------- Run | Scr Mat Mat Total Allies . | . . . Largest Group . | . . . Highest-Rated Group . | . . . Highest-Rated Ally . | . . . Total Orders . | . . . Ally Attacks . | . . . Total Damage . | . . . Kills . | . . . Allies Corrupted . | . . . Allies Melted . | . . . Intel | -11 -10 -9 ------- Run | Scr Mat Mat Robot Analysis Total . | . . . Derelict Logs Recovered . | . . . Drone Launches . | . . . Drone Recoveries . | . . . Exploration | -11 -10 -9 ------------- Run | Scr Mat Mat Turns Passed 637 | 54 461 122 Spaces Moved 316 | 39 251 26 Core 86 | 9 74 3 Treads . | . . . Legs 95 | 30 65 . Wheels . | . . . Hover 135 | . 112 23 Flight . | . . . Fastest Speed 50 | 50 56 196 Average Speed 148 | 103 147 228 Slowest Speed 350 | 120 250 350 Overloaded Moves . | . . . Propulsion Burnouts . | . . . Robots Hopped . | . . . Cave-ins Triggered . | . . . Exploration Rate (%) 17 | 3 42 7 Regions Visited 2 Branch Regions . Pre-discovered Areas . | . . . Known Exits Taken . | . . . Unknown Exits Taken 2 | 1 1 . Scrap Searched . | . . . Spaces Dug . | . . . Terrain Destroyed 70 | . 63 7 Melee . | . . . Projectile . | . . . AOE 70 | . 63 7 Terrain Rammed . | . . . Walls Destroyed . | . . . Machines Disabled . | . . . Actions | -11 -10 -9 --------- Run | Scr Mat Mat Total 424 | 52 303 69 Wait 31 | . . 31 Move 314 | 38 250 26 Hop . | . . . Pick Up 21 | 8 13 . Fast Attach . | . . . Attach 20 | 6 11 3 Detach 1 | . 1 . Swap 1 | . 1 . Drop 4 | . 4 . Fire 29 | . 22 7 Melee . | . . . Ram 3 | . 1 2 Kick . | . . . Crush . | . . . Escape Stasis . | . . . Rewire . | . . . Trap . | . . . Miscellaneous . | . . . Route ------- -11/Scrapyard -10/Materials -9/Materials History --------- Turn | Location | Event 20 | -11/Scrapyard | Discovered new exit (range 16) 55 | -11/Scrapyard | Entered Materials 213 | -10/Materials | Core integrity fell below 50% 215 | -10/Materials | Lost 6 parts (1p2n3w) 311 | -10/Materials | Build established: Mutant 416 | -10/Materials | Discovered new exit (range 11) 516 | -10/Materials | Entered another Materials area 516 | -9/Materials | Evolved 2 slots: Propulsion x1, Weapon x1 626 | -9/Materials | Core integrity fell below 50% 633 | -9/Materials | Core integrity fell below 20% 638 | -9/Materials | Destroyed by S-10 Pest with Light Assault Rifle Last Messages --------------- Switching to secondary target: G-34 Mercenary. G-34 Mercenary misfires. T-07 Excavator is excavating. Hover Unit severed. Lgt. Ion Engine destroyed. Door malfunctions. EM Pulse Gun destroyed. Lgt. Ion Engine destroyed. Hrd. Light Armor Plating destroyed. Slammed into L-31 Rogue. Hover Unit destroyed. Slammed into L-31 Rogue. G-34 Mercenary IFF system glitched. EM Pulse Gun destroyed. Lgt. Treads destroyed. T-07 Excavator is excavating. S-10 Pest destroyed. T-07 Excavator is excavating. EM Pulse Gun destroyed. T-07 Excavator is excavating. Map ----- +----------------------------------------------------+ | ?????????????????????????????????????????????????? | | ?????????????????????????????????????????????????? | | ?????????????????????????????????????????????????? | | ?????????????????????????????????????????????????? | | ?????????????????????????????????????????????????? | | ?????????????????????????????????????????????????? | | ?????????????????????????????????????????????????? | | ?????????????????????????????????????????????????? | | ?????????????????????????????????????????????????? | | ??????????????????????? ???????????????????????? | | ??????????????????????? ???????????????????????? | | ??????????????????????? ?? ????????????????? | | ??????????????????????? ?? ??????????????? | | ???????????????????????# ?m ????????????? | | ???????????????????????# ????????????? | | ???????????????????????# ???????????? | | ???????????????????????# "" !!=????????????? | | ??????????????##??????## "T !??????????????? | | ??????????????? ????#; ???????????????? | | ???????????????? t####;]! =%= ????????????????? | | ?????????????????? =%=%* ??????????????????? | | ??????????????????? #%%=%% ???????????????????? | | ??????????????????### #=sss[ ????????????????????? | | ??????????????????# ]!g#?????????????????????? | | ??????????????????#^ ^ #?????##??????????????? | | ??????????????????# ^ @ #???? ??????????????? | | ??????????????????# l #?? """"??????????????? | | ??????????????????# = #? """"??????????????? | | ??????????????????# # """" #????????????? | | ????????????????### "" / #????????????? | | ???????????????#""" "" # [[ #????????????? | | ????????????????"R T" # [[ #????????????? | | ???????????????#""" "" #? [[ #????????????? | | ????????????????### "" #? #????????????? | | ??????????????????# #??#######????????????? | | ??????????????????# #?????????????????????? | | ?????????????????# # #?????????????????????? | | ?????????????????# # #?????????????????????? | | ?????????????????# # #?????????????????????? | | ?????????????????# ?# #?????????????????????? | | ?????????????????# ??# #?????????????????????? | | ?????????????????###???# #?????????????????????? | | ???????????????????????# #?????????????????????? | | ???????????????????????#####?????????????????????? | | ?????????????????????????????????????????????????? | | ?????????????????????????????????????????????????? | | ?????????????????????????????????????????????????? | | ?????????????????????????????????????????????????? | | ?????????????????????????????????????????????????? | | ?????????????????????????????????????????????????? | +----------------------------------------------------+ Best States ------------- Heat Dissipation 28 Energy Generation 10 Energy Capacity 125 Matter Stores 269 Matter Capacity 300 Sight Range 16 Terrain Scan Density 10 Armor Coverage 150 Resistance: KI 20 Resistance: TH 20 Resistance: EX 20 Resistance: EM 20 Resistance: I 20 Resistance: S 20 Resistance: P 20 Evasion (%) 50 Offensive Hacking 10 Item Schematics ----------------- None Robot Schematics ------------------ None Fabricated ------------ Nothing Alien Tech Used ----------------- None Achievements -------------- Crack Shot Uninvited Guest Challenges ------------ None Game ------ Seed OverloadBiometalFrame Manual? 0 Play Time 00:13:35 Cumulative 2.4 hours Start 2020.11.02 @ 00:08:10 End 2020.11.02 @ 00:20:17 Sessions 1 Manual Loads 0 Difficulty Adventurer Special Mode None Game No. 5 Rogue 4 Adventurer 1 Explorer 0 Win Type - Total 0 Types 0/0/0/0/0/0/0/0/0 Lore% 10 Gallery% 7 Achievement% 4 Wizard Run 0 Options --------- ASCII 0 Keyboard 0 Movement Arrows Keybinds 0 Fullscreen 1 Font 18/SmallcapsGlow Map View 76x50 Tactical HUD 0 Map Filters NONE Filters NONE Steam 1 RUN: a4dc9526-b853-4143-b5dc-85660d1d8d2b